[Event "Early-Titled-Tuesday-Blitz-February-06-2024"]
[Site "Chess.com"]
[Date "2024.02.06"]
[Round "7"]
[White "Yaacovn"]
[Black "vladgoncharov"]
[Result "1-0"]
[WhiteElo "2840"]
[BlackElo "2635"]
[TimeControl "180+1"]
[EndTime "9:19:04 PST"]
[Termination "Yaacovn won on time"]

1. d4 {[%clk 0:03:00.9]} 1... Nf6 {[%clk 0:02:59.2]} 2. e3 {[%clk 0:03:00.7]}
2... g6 {[%clk 0:02:57.3]} 3. Nf3 {[%clk 0:03:00.8]} 3... Bg7 {[%clk 0:02:57.5]}
4. Be2 {[%clk 0:03:01.1]} 4... O-O {[%clk 0:02:57.5]} 5. O-O {[%clk 0:03:01.5]}
5... c5 {[%clk 0:02:58]} 6. b3 {[%clk 0:03:02.1]} 6... cxd4 {[%clk 0:02:58]} 7.
Nxd4 {[%clk 0:03:03]} 7... d5 {[%clk 0:02:58.1]} 8. Bb2 {[%clk 0:03:03]} 8...
Re8 {[%clk 0:02:57.8]} 9. Nf3 {[%clk 0:03:02.1]} 9... Nc6 {[%clk 0:02:57.6]} 10.
Bb5 {[%clk 0:03:02.2]} 10... a6 {[%clk 0:02:37.5]} 11. Bxc6 {[%clk 0:03:02.1]}
11... bxc6 {[%clk 0:02:37.7]} 12. h3 {[%clk 0:03:02.1]} 12... Qd6 {[%clk
0:02:35.6]} 13. Be5 {[%clk 0:03:01.5]} 13... Qe6 {[%clk 0:02:32.8]} 14. Nc3
{[%clk 0:02:57.8]} 14... Bh6 {[%clk 0:02:28.3]} 15. Na4 {[%clk 0:02:51.6]} 15...
Nd7 {[%clk 0:02:27.6]} 16. Bf4 {[%clk 0:02:42.9]} 16... Bg7 {[%clk 0:02:25.5]}
17. Rc1 {[%clk 0:02:42.7]} 17... a5 {[%clk 0:02:20.1]} 18. c4 {[%clk 0:02:41.2]}
18... dxc4 {[%clk 0:02:19.4]} 19. Nd4 {[%clk 0:02:38.9]} 19... Qf6 {[%clk
0:02:12.1]} 20. Bg3 {[%clk 0:02:06.3]} 20... e5 {[%clk 0:02:02.7]} 21. Nf3
{[%clk 0:02:04.6]} 21... cxb3 {[%clk 0:01:59.2]} 22. axb3 {[%clk 0:01:56.8]}
22... h6 {[%clk 0:01:49]} 23. Nd2 {[%clk 0:01:54.2]} 23... e4 {[%clk 0:01:32]}
24. Nc4 {[%clk 0:01:51.2]} 24... Qe6 {[%clk 0:01:26.7]} 25. Nd6 {[%clk
0:01:49.4]} 25... Rd8 {[%clk 0:01:25.6]} 26. Rxc6 {[%clk 0:01:46.4]} 26... Ne5
{[%clk 0:01:00.5]} 27. Nb6 {[%clk 0:01:24.2]} 27... Ba6 {[%clk 0:00:57.4]} 28.
Nxa8 {[%clk 0:01:15.8]} 28... Bxf1 {[%clk 0:00:53.6]} 29. Qxf1 {[%clk
0:01:08.6]} 29... Nxc6 {[%clk 0:00:51.9]} 30. Nc7 {[%clk 0:01:06.1]} 30... Qxb3
{[%clk 0:00:48.4]} 31. Qa6 {[%clk 0:01:01.7]} 31... Qc2 {[%clk 0:00:39.7]} 32.
Kh2 {[%clk 0:00:53.4]} 32... a4 {[%clk 0:00:34.8]} 33. Nd5 {[%clk 0:00:52.4]}
33... Qc5 {[%clk 0:00:17.2]} 34. Qxc6 {[%clk 0:00:41.8]} 34... Qxc6 {[%clk
0:00:17]} 35. Ne7+ {[%clk 0:00:42.4]} 35... Kh7 {[%clk 0:00:15.3]} 36. Nxc6
{[%clk 0:00:42.3]} 36... a3 {[%clk 0:00:15.3]} 37. Nxd8 {[%clk 0:00:39.6]} 37...
a2 {[%clk 0:00:14.6]} 38. N8xf7 {[%clk 0:00:33.3]} 38... a1=Q {[%clk 0:00:14.6]}
39. Nxe4 {[%clk 0:00:33.5]} 39... Qa2 {[%clk 0:00:10.8]} 40. Nfd6 {[%clk
0:00:28.1]} 40... Qd5 {[%clk 0:00:10.7]} 41. f3 {[%clk 0:00:27.2]} 41... g5
{[%clk 0:00:10.2]} 42. Ne8 {[%clk 0:00:25.6]} 42... Kg6 {[%clk 0:00:06.3]} 43.
Nxg7 {[%clk 0:00:20.2]} 43... Kxg7 {[%clk 0:00:07.2]} 44. Nd6 {[%clk 0:00:19.7]}
44... Kg6 {[%clk 0:00:07.4]} 45. e4 {[%clk 0:00:20]} 45... Qd2 {[%clk
0:00:07.6]} 46. Nf5 {[%clk 0:00:19.7]} 46... h5 {[%clk 0:00:07.9]} 47. h4 {[%clk
0:00:20.3]} 47... g4 {[%clk 0:00:07.7]} 48. f4 {[%clk 0:00:16.5]} 48... Qe2
{[%clk 0:00:07.8]} 49. Nd6 {[%clk 0:00:15.7]} 49... Qd3 {[%clk 0:00:07.2]} 50.
e5 {[%clk 0:00:13.5]} 50... Kg7 {[%clk 0:00:07.1]} 51. f5 {[%clk 0:00:13.7]}
51... Kf8 {[%clk 0:00:07]} 52. e6 {[%clk 0:00:10.9]} 52... Ke7 {[%clk
0:00:06.2]} 53. Bf4 {[%clk 0:00:06.4]} 53... Qf1 {[%clk 0:00:05.1]} 54. Be5
{[%clk 0:00:04.9]} 54... Qe2 {[%clk 0:00:03.3]} 55. Bg3 {[%clk 0:00:05.4]} 55...
Qf1 {[%clk 0:00:03]} 56. Nc8+ {[%clk 0:00:05.8]} 56... Kd8 {[%clk 0:00:02.7]}
57. Nd6 {[%clk 0:00:05.2]} 57... Ke7 {[%clk 0:00:02.9]} 58. Be5 {[%clk
0:00:05.3]} 58... Qe2 {[%clk 0:00:02.4]} 59. Bf4 {[%clk 0:00:05.8]} 59... Qe1
{[%clk 0:00:02.5]} 60. Nc8+ {[%clk 0:00:05.1]} 60... Kd8 {[%clk 0:00:02]} 61. f6
{[%clk 0:00:05]} 61... Qxh4+ {[%clk 0:00:02]} 62. Kg1 {[%clk 0:00:05.1]} 62...
Qxf6 {[%clk 0:00:02.3]} 63. e7+ {[%clk 0:00:04.5]} 63... Kd7 {[%clk 0:00:01.4]}
64. Nd6 {[%clk 0:00:03.6]} 64... Qxe7 {[%clk 0:00:01.3]} 65. Kh2 {[%clk
0:00:02.9]} 65... Qe2 {[%clk 0:00:01]} 66. Bg3 {[%clk 0:00:02.7]} 1-0

[Event "Early-Titled-Tuesday-Blitz-February-06-2024"]
[Site "Chess.com"]
[Date "2024.02.06"]
[Round "7"]
[White "ValiantCeleb"]
[Black "abelmat"]
[Result "0-1"]
[WhiteElo "2221"]
[BlackElo "2092"]
[TimeControl "180+1"]
[EndTime "9:19:06 PST"]
[Termination "abelmat won on time"]

1. e4 {[%clk 0:02:58.8]} 1... e6 {[%clk 0:02:55.2]} 2. d4 {[%clk 0:02:58.1]}
2... d5 {[%clk 0:02:56.1]} 3. Nc3 {[%clk 0:02:58.4]} 3... dxe4 {[%clk
0:02:56.1]} 4. Nxe4 {[%clk 0:02:58.2]} 4... Nd7 {[%clk 0:02:57]} 5. Nf3 {[%clk
0:02:57.2]} 5... Ngf6 {[%clk 0:02:57.5]} 6. Bd3 {[%clk 0:02:57.8]} 6... Be7
{[%clk 0:02:57.7]} 7. O-O {[%clk 0:02:57.1]} 7... b6 {[%clk 0:02:57.5]} 8. c3
{[%clk 0:02:56.7]} 8... Bb7 {[%clk 0:02:57.8]} 9. Qe2 {[%clk 0:02:57.1]} 9...
O-O {[%clk 0:02:58.3]} 10. h3 {[%clk 0:02:51.4]} 10... Nxe4 {[%clk 0:02:58]} 11.
Bxe4 {[%clk 0:02:51.2]} 11... Bxe4 {[%clk 0:02:58.4]} 12. Qxe4 {[%clk
0:02:51.5]} 12... Nf6 {[%clk 0:02:58.5]} 13. Qe2 {[%clk 0:02:49.8]} 13... c5
{[%clk 0:02:55.5]} 14. Bf4 {[%clk 0:02:45]} 14... cxd4 {[%clk 0:02:54.6]} 15.
Nxd4 {[%clk 0:02:43.5]} 15... Nd5 {[%clk 0:02:51.8]} 16. Be5 {[%clk 0:02:41.3]}
16... Rc8 {[%clk 0:02:47.6]} 17. Rad1 {[%clk 0:02:39.9]} 17... Bd6 {[%clk
0:02:30.9]} 18. Bxd6 {[%clk 0:02:29.2]} 18... Qxd6 {[%clk 0:02:29.9]} 19. g3
{[%clk 0:02:08.3]} 19... Qe7 {[%clk 0:02:11.2]} 20. Rfe1 {[%clk 0:01:53]} 20...
Rfd8 {[%clk 0:02:04.6]} 21. Qf3 {[%clk 0:01:39.5]} 21... Qc5 {[%clk 0:01:55.6]}
22. Nb3 {[%clk 0:01:31.3]} 22... Qb5 {[%clk 0:01:51.9]} 23. Rd4 {[%clk
0:01:27.5]} 23... Nf6 {[%clk 0:01:45.2]} 24. Red1 {[%clk 0:01:21.5]} 24... Rxd4
{[%clk 0:01:44.1]} 25. Rxd4 {[%clk 0:01:19.8]} 25... h6 {[%clk 0:01:38.2]} 26.
Qd3 {[%clk 0:01:05.5]} 26... Qxd3 {[%clk 0:01:24.2]} 27. Rxd3 {[%clk 0:01:06.4]}
27... Kf8 {[%clk 0:01:21.3]} 28. Kg2 {[%clk 0:01:05.8]} 28... Ke7 {[%clk
0:01:21.2]} 29. Kf3 {[%clk 0:01:06.2]} 29... Nd5 {[%clk 0:01:20.9]} 30. Nd4
{[%clk 0:01:04.8]} 30... a6 {[%clk 0:01:16.1]} 31. h4 {[%clk 0:00:59.1]} 31...
b5 {[%clk 0:01:16]} 32. Nf5+ {[%clk 0:00:39.7]} 32... Kf6 {[%clk 0:00:59.1]} 33.
Nd6 {[%clk 0:00:36.9]} 33... Rc6 {[%clk 0:00:57.1]} 34. Ne4+ {[%clk 0:00:24.5]}
34... Ke7 {[%clk 0:00:56.5]} 35. a3 {[%clk 0:00:21]} 35... Nb6 {[%clk
0:00:54.7]} 36. Ke3 {[%clk 0:00:17]} 36... Nc4+ {[%clk 0:00:54.7]} 37. Ke2
{[%clk 0:00:16.2]} 37... Nxb2 {[%clk 0:00:54.4]} 38. Nd2 {[%clk 0:00:15.8]}
38... Nxd3 {[%clk 0:00:53.8]} 39. Kxd3 {[%clk 0:00:15.1]} 39... Rd6+ {[%clk
0:00:53.8]} 40. Kc2 {[%clk 0:00:14.9]} 40... f5 {[%clk 0:00:51.2]} 41. Nb3
{[%clk 0:00:14.9]} 41... e5 {[%clk 0:00:49.5]} 42. Nc5 {[%clk 0:00:15]} 42... g5
{[%clk 0:00:46.2]} 43. hxg5 {[%clk 0:00:12.2]} 43... hxg5 {[%clk 0:00:46.2]} 44.
Nd3 {[%clk 0:00:10]} 44... Kf6 {[%clk 0:00:44.3]} 45. Nc5 {[%clk 0:00:07.3]}
45... f4 {[%clk 0:00:40.9]} 46. Ne4+ {[%clk 0:00:07.1]} 46... Ke6 {[%clk
0:00:39.5]} 47. Nxg5+ {[%clk 0:00:04.2]} 47... Kf5 {[%clk 0:00:39.2]} 48. Nf7
{[%clk 0:00:02.4]} 48... Rf6 {[%clk 0:00:33.1]} 49. g4+ {[%clk 0:00:02.4]} 49...
Ke6 {[%clk 0:00:30.5]} 50. Ng5+ {[%clk 0:00:02]} 50... Ke7 {[%clk 0:00:27.2]}
51. f3 {[%clk 0:00:02.9]} 51... Rh6 {[%clk 0:00:25.4]} 52. Kd3 {[%clk
0:00:03.5]} 52... Rh1 {[%clk 0:00:24.9]} 53. Ke4 {[%clk 0:00:03.5]} 53... Kf6
{[%clk 0:00:24.4]} 54. Kd3 {[%clk 0:00:02.1]} 54... Ra1 {[%clk 0:00:23.2]} 55.
Ne4+ {[%clk 0:00:02.4]} 55... Ke6 {[%clk 0:00:22.8]} 56. Nc5+ {[%clk 0:00:02.8]}
56... Kd5 {[%clk 0:00:22.7]} 57. Nxa6 {[%clk 0:00:03]} 57... Rxa3 {[%clk
0:00:20.4]} 58. Nc7+ {[%clk 0:00:03.4]} 58... Kc6 {[%clk 0:00:19.2]} 59. Ne6
{[%clk 0:00:02.9]} 59... b4 {[%clk 0:00:18.5]} 60. Kc4 {[%clk 0:00:02.1]} 60...
bxc3 {[%clk 0:00:17.6]} 61. Nd8+ {[%clk 0:00:01.6]} 61... Kd7 {[%clk 0:00:17.6]}
0-1

[Event "Early-Titled-Tuesday-Blitz-February-06-2024"]
[Site "Chess.com"]
[Date "2024.02.06"]
[Round "7"]
[White "MatthewG-p4p"]
[Black "SantoBlue"]
[Result "1-0"]
[WhiteElo "2826"]
[BlackElo "2985"]
[TimeControl "180+1"]
[EndTime "9:19:09 PST"]
[Termination "MatthewG-p4p won by resignation"]

1. e4 {[%clk 0:03:00.9]} 1... d6 {[%clk 0:02:59.8]} 2. d4 {[%clk 0:03:00.4]}
2... Nf6 {[%clk 0:03:00.2]} 3. Nc3 {[%clk 0:03:00]} 3... e5 {[%clk 0:03:00.9]}
4. Nf3 {[%clk 0:03:00.2]} 4... Nbd7 {[%clk 0:03:00.7]} 5. Bc4 {[%clk 0:03:00]}
5... Be7 {[%clk 0:03:01.1]} 6. O-O {[%clk 0:02:54]} 6... O-O {[%clk 0:03:01.7]}
7. h3 {[%clk 0:02:54.5]} 7... c6 {[%clk 0:03:01.8]} 8. a4 {[%clk 0:02:54.8]}
8... h6 {[%clk 0:03:01.3]} 9. Re1 {[%clk 0:02:55.3]} 9... Re8 {[%clk 0:02:59.1]}
10. Bf1 {[%clk 0:02:20.5]} 10... exd4 {[%clk 0:02:58.2]} 11. Nxd4 {[%clk
0:02:20.6]} 11... Bf8 {[%clk 0:02:58.5]} 12. Bf4 {[%clk 0:02:13.2]} 12... Ne5
{[%clk 0:02:50.2]} 13. Qd2 {[%clk 0:02:04.7]} 13... a5 {[%clk 0:02:47.4]} 14.
Rad1 {[%clk 0:02:02.2]} 14... Qb6 {[%clk 0:02:47.1]} 15. b3 {[%clk 0:02:02.7]}
15... Bd7 {[%clk 0:02:47.5]} 16. Be3 {[%clk 0:01:58.6]} 16... Qc7 {[%clk
0:02:39.1]} 17. f4 {[%clk 0:01:52.8]} 17... Ng6 {[%clk 0:02:38.7]} 18. Bf2
{[%clk 0:01:52.7]} 18... Rad8 {[%clk 0:02:20.5]} 19. g3 {[%clk 0:01:48.5]} 19...
d5 {[%clk 0:02:16.2]} 20. e5 {[%clk 0:01:26.9]} 20... Nh7 {[%clk 0:01:56.3]} 21.
Qd3 {[%clk 0:01:17.1]} 21... Qc8 {[%clk 0:01:54.7]} 22. e6 {[%clk 0:01:11.3]}
22... Bxe6 {[%clk 0:01:31.5]} 23. Nxe6 {[%clk 0:00:55.9]} 23... Rxe6 {[%clk
0:01:31.2]} 24. Rxe6 {[%clk 0:00:55.9]} 24... Qxe6 {[%clk 0:01:30.8]} 25. f5
{[%clk 0:00:56]} 25... Qf6 {[%clk 0:01:28.8]} 26. fxg6 {[%clk 0:00:54.4]} 26...
fxg6 {[%clk 0:01:29.7]} 27. h4 {[%clk 0:00:40.9]} 27... Bd6 {[%clk 0:01:25.3]}
28. Bg2 {[%clk 0:00:38.7]} 28... Nf8 {[%clk 0:01:24.9]} 29. Rf1 {[%clk
0:00:38.4]} 29... Qe7 {[%clk 0:01:20.9]} 30. Re1 {[%clk 0:00:34.6]} 30... Qf6
{[%clk 0:01:18.5]} 31. Bh3 {[%clk 0:00:29.7]} 31... Be5 {[%clk 0:01:14.3]} 32.
Ne2 {[%clk 0:00:29.1]} 32... Nd7 {[%clk 0:01:10.8]} 33. Rf1 {[%clk 0:00:21]}
33... Qd6 {[%clk 0:01:07.4]} 34. Bd4 {[%clk 0:00:21.4]} 34... Nc5 {[%clk
0:00:59.5]} 35. Qf3 {[%clk 0:00:14.7]} 35... Ne4 {[%clk 0:00:53.6]} 36. Bxe5
{[%clk 0:00:11]} 36... Qxe5 {[%clk 0:00:54.5]} 37. Qe3 {[%clk 0:00:08.5]} 37...
d4 {[%clk 0:00:45.9]} 38. Qd3 {[%clk 0:00:08.6]} 38... Kh7 {[%clk 0:00:40.7]}
39. Nf4 {[%clk 0:00:07.7]} 39... Nf6 {[%clk 0:00:12]} 40. Nxg6 {[%clk 0:00:04]}
40... Qe3+ {[%clk 0:00:10.5]} 41. Qxe3 {[%clk 0:00:04.7]} 41... dxe3 {[%clk
0:00:11.4]} 42. Nf4 {[%clk 0:00:05.6]} 42... Rd2 {[%clk 0:00:11.8]} 43. Bf5+
{[%clk 0:00:06.1]} 43... Kg8 {[%clk 0:00:12.3]} 44. Re1 {[%clk 0:00:06.4]} 44...
g5 {[%clk 0:00:11.1]} 45. hxg5 {[%clk 0:00:06.1]} 45... hxg5 {[%clk 0:00:12]}
46. Nh3 {[%clk 0:00:06.2]} 46... Nd5 {[%clk 0:00:09.4]} 47. Nxg5 {[%clk
0:00:06.5]} 47... Rf2 {[%clk 0:00:09.5]} 48. Be6+ {[%clk 0:00:06.7]} 48... Kg7
{[%clk 0:00:10.2]} 49. Bxd5 {[%clk 0:00:07.6]} 49... cxd5 {[%clk 0:00:11.1]} 50.
Rxe3 {[%clk 0:00:07.6]} 50... Rxc2 {[%clk 0:00:11.8]} 51. Rd3 {[%clk 0:00:08.2]}
51... Rb2 {[%clk 0:00:10.1]} 52. Ne6+ {[%clk 0:00:07.6]} 52... Kf6 {[%clk
0:00:10.7]} 53. Nf4 {[%clk 0:00:08.5]} 53... Ke5 {[%clk 0:00:10.6]} 54. Rxd5+
{[%clk 0:00:08.9]} 54... Ke4 {[%clk 0:00:11.2]} 55. Rd3 {[%clk 0:00:08.3]} 55...
b6 {[%clk 0:00:09.9]} 56. Kf1 {[%clk 0:00:08.1]} 56... Ra2 {[%clk 0:00:08.8]}
57. Rc3 {[%clk 0:00:07.9]} 57... Rb2 {[%clk 0:00:09.2]} 58. Ne2 {[%clk 0:00:07]}
58... Rb1+ {[%clk 0:00:08.8]} 59. Kf2 {[%clk 0:00:07.3]} 59... Rb2 {[%clk
0:00:09.2]} 60. g4 {[%clk 0:00:07.9]} 60... Rd2 {[%clk 0:00:08.5]} 61. Rg3
{[%clk 0:00:08.6]} 61... Ke5 {[%clk 0:00:07.9]} 62. g5 {[%clk 0:00:09.2]} 62...
Rd7 {[%clk 0:00:06.4]} 63. g6 {[%clk 0:00:09.6]} 63... Rg7 {[%clk 0:00:07.3]}
64. Ke3 {[%clk 0:00:10.1]} 64... Kf5 {[%clk 0:00:07.6]} 65. Nd4+ {[%clk
0:00:10.4]} 65... Kf6 {[%clk 0:00:08.1]} 66. Ke4 {[%clk 0:00:10.6]} 66... Re7+
{[%clk 0:00:08.5]} 67. Kd5 {[%clk 0:00:11.2]} 67... Kg7 {[%clk 0:00:09.4]} 68.
Nf5+ {[%clk 0:00:11.4]} 1-0

[Event "Early-Titled-Tuesday-Blitz-February-06-2024"]
[Site "Chess.com"]
[Date "2024.02.06"]
[Round "7"]
[White "The_Straightforward_Rook"]
[Black "Nf3c5"]
[Result "1-0"]
[WhiteElo "2404"]
[BlackElo "2542"]
[TimeControl "180+1"]
[EndTime "9:19:09 PST"]
[Termination "The_Straightforward_Rook won on time"]

1. Nf3 {[%clk 0:02:44]} 1... d5 {[%clk 0:02:55.9]} 2. c4 {[%clk 0:02:43.1]} 2...
d4 {[%clk 0:02:55.5]} 3. b4 {[%clk 0:02:41.2]} 3... f6 {[%clk 0:02:56]} 4. e3
{[%clk 0:02:39.6]} 4... e5 {[%clk 0:02:53.9]} 5. c5 {[%clk 0:02:38.1]} 5... a5
{[%clk 0:02:52.8]} 6. a3 {[%clk 0:02:36.8]} 6... axb4 {[%clk 0:02:43.8]} 7. Bc4
{[%clk 0:02:36.3]} 7... Bxc5 {[%clk 0:02:33.2]} 8. Nxe5 {[%clk 0:02:27.1]} 8...
Nh6 {[%clk 0:01:32.6]} 9. Qh5+ {[%clk 0:02:20.6]} 9... Kf8 {[%clk 0:01:18.9]}
10. Nf7 {[%clk 0:02:17.6]} 10... Qe7 {[%clk 0:01:19.5]} 11. Nxh8 {[%clk
0:02:13.9]} 11... Bg4 {[%clk 0:01:06.6]} 12. Qd5 {[%clk 0:02:08.2]} 12... Nc6
{[%clk 0:01:03.4]} 13. Nf7 {[%clk 0:01:46.3]} 13... Nxf7 {[%clk 0:00:53.8]} 14.
Qxf7+ {[%clk 0:01:47.2]} 14... Qxf7 {[%clk 0:00:54.4]} 15. Bxf7 {[%clk
0:01:48.1]} 15... Kxf7 {[%clk 0:00:55.3]} 16. O-O {[%clk 0:01:48.2]} 16... b3
{[%clk 0:00:51.5]} 17. Bb2 {[%clk 0:01:45.8]} 17... Rd8 {[%clk 0:00:43.3]} 18.
Rc1 {[%clk 0:01:42.3]} 18... Bb6 {[%clk 0:00:42.5]} 19. a4 {[%clk 0:01:39]}
19... Rd7 {[%clk 0:00:34.8]} 20. Na3 {[%clk 0:01:38.7]} 20... Nb4 {[%clk
0:00:17.7]} 21. Nc4 {[%clk 0:01:37.1]} 21... Ba7 {[%clk 0:00:15.1]} 22. e4
{[%clk 0:01:18]} 22... Nc2 {[%clk 0:00:14.4]} 23. Rab1 {[%clk 0:01:14.6]} 23...
Be6 {[%clk 0:00:14.9]} 24. Na3 {[%clk 0:01:04.8]} 24... Nb4 {[%clk 0:00:12.8]}
25. Nb5 {[%clk 0:01:04.8]} 25... Bb6 {[%clk 0:00:12.5]} 26. Ba3 {[%clk
0:01:01.2]} 26... Nd3 {[%clk 0:00:11.7]} 27. Rf1 {[%clk 0:00:57.6]} 27... c6
{[%clk 0:00:12.2]} 28. Nd6+ {[%clk 0:00:54.3]} 28... Kg8 {[%clk 0:00:11.1]} 29.
f4 {[%clk 0:00:46.1]} 29... Nc5 {[%clk 0:00:05.3]} 30. Bxc5 {[%clk 0:00:34.5]}
30... Bxc5 {[%clk 0:00:04.9]} 31. Nf5 {[%clk 0:00:34.2]} 31... d3+ {[%clk
0:00:04.6]} 32. Kh1 {[%clk 0:00:33.5]} 32... g6 {[%clk 0:00:04.8]} 33. Ng3
{[%clk 0:00:26.5]} 33... Bf7 {[%clk 0:00:04.5]} 34. h3 {[%clk 0:00:24.1]} 34...
Bd4 {[%clk 0:00:03.7]} 35. e5 {[%clk 0:00:20]} 35... c5 {[%clk 0:00:03.3]} 36.
Ne4 {[%clk 0:00:19.6]} 36... fxe5 {[%clk 0:00:01.6]} 37. Nf6+ {[%clk 0:00:19.8]}
37... Kg7 {[%clk 0:00:01.8]} 38. Nxd7 {[%clk 0:00:20.5]} 38... c4 {[%clk
0:00:02.7]} 39. Nxe5 {[%clk 0:00:20.7]} 39... Be6 {[%clk 0:00:03]} 40. Rfc1
{[%clk 0:00:19.8]} 40... Bxe5 {[%clk 0:00:02.4]} 41. fxe5 {[%clk 0:00:19.9]}
41... Bd5 {[%clk 0:00:03.3]} 42. Kg1 {[%clk 0:00:19.7]} 42... Kf7 {[%clk
0:00:04.2]} 43. Kf2 {[%clk 0:00:19.5]} 43... Ke6 {[%clk 0:00:05.1]} 44. Re1
{[%clk 0:00:19.6]} 44... Bc6 {[%clk 0:00:04.5]} 45. a5 {[%clk 0:00:19.6]} 45...
Bd5 {[%clk 0:00:05.4]} 46. g4 {[%clk 0:00:18.3]} 46... h6 {[%clk 0:00:05.8]} 47.
h4 {[%clk 0:00:18.1]} 47... g5 {[%clk 0:00:06.7]} 48. hxg5 {[%clk 0:00:18.4]}
48... hxg5 {[%clk 0:00:07.6]} 49. Ke3 {[%clk 0:00:18]} 49... Bc6 {[%clk
0:00:07.9]} 50. Rf1 {[%clk 0:00:18.3]} 50... Bd5 {[%clk 0:00:08.8]} 51. Rf5
{[%clk 0:00:18.5]} 51... Bc6 {[%clk 0:00:08.6]} 52. Rxg5 {[%clk 0:00:19.1]}
52... Kd5 {[%clk 0:00:09.2]} 53. Rf5 {[%clk 0:00:18.7]} 53... Kc5 {[%clk
0:00:10.1]} 54. e6+ {[%clk 0:00:18.5]} 54... Kb4 {[%clk 0:00:11]} 55. e7 {[%clk
0:00:18.3]} 55... Ka3 {[%clk 0:00:11.4]} 56. Rc5 {[%clk 0:00:13.7]} 56... Be8
{[%clk 0:00:10.1]} 57. Rc8 {[%clk 0:00:13.5]} 57... Bg6 {[%clk 0:00:09.1]} 58.
e8=Q {[%clk 0:00:14.4]} 58... Bxe8 {[%clk 0:00:09.1]} 59. Rxe8 {[%clk
0:00:15.3]} 59... Ka2 {[%clk 0:00:09.9]} 60. Rh1 {[%clk 0:00:15.3]} 60... b2
{[%clk 0:00:10.6]} 61. Rb8 {[%clk 0:00:15.7]} 61... b1=Q {[%clk 0:00:10.9]} 62.
Rxb1 {[%clk 0:00:16.3]} 62... Kxb1 {[%clk 0:00:11.8]} 63. Rxb7+ {[%clk
0:00:17.2]} 63... Kc2 {[%clk 0:00:12.7]} 64. a6 {[%clk 0:00:18.1]} 64... c3
{[%clk 0:00:13.6]} 65. dxc3 {[%clk 0:00:18.2]} 65... d2 {[%clk 0:00:14.2]} 66.
Rd7 {[%clk 0:00:18.8]} 66... d1=Q {[%clk 0:00:15.1]} 67. Rxd1 {[%clk 0:00:19.4]}
67... Kxd1 {[%clk 0:00:16]} 68. a7 {[%clk 0:00:20.2]} 1-0